[Event "Late-Titled-Tuesday-Blitz-June-18-2024"]
[Site "Chess.com"]
[Date "2024.06.18"]
[Round "8"]
[White "jcibarra"]
[Black "Dolphin_2010"]
[Result "0-1"]
[WhiteElo "2997"]
[BlackElo "2820"]
[TimeControl "180+1"]
[EndTime "15:30:06 PDT"]
[Termination "Dolphin_2010 won by resignation"]

1. e4 {[%clk 0:03:00.9]} 1... c6 {[%clk 0:02:51.7]} 2. Nf3 {[%clk 0:02:59.5]}
2... d5 {[%clk 0:02:52.6]} 3. d3 {[%clk 0:02:59.9]} 3... g6 {[%clk 0:02:23.4]}
4. Qe2 {[%clk 0:02:58.7]} 4... Bg7 {[%clk 0:02:22.6]} 5. g3 {[%clk 0:02:59.2]}
5... Bg4 {[%clk 0:02:18.4]} 6. Nbd2 {[%clk 0:02:58.7]} 6... Nf6 {[%clk
0:02:18.1]} 7. h3 {[%clk 0:02:54.5]} 7... Bxf3 {[%clk 0:02:18]} 8. Nxf3 {[%clk
0:02:55.4]} 8... e6 {[%clk 0:02:15.6]} 9. Bg2 {[%clk 0:02:54.4]} 9... O-O {[%clk
0:02:16.1]} 10. O-O {[%clk 0:02:54.8]} 10... a5 {[%clk 0:02:15.7]} 11. e5 {[%clk
0:02:54.4]} 11... Nfd7 {[%clk 0:02:15.5]} 12. h4 {[%clk 0:02:55]} 12... c5
{[%clk 0:02:13.6]} 13. c4 {[%clk 0:02:54.5]} 13... Nc6 {[%clk 0:02:12.9]} 14.
Bf4 {[%clk 0:02:54.6]} 14... d4 {[%clk 0:01:59.6]} 15. h5 {[%clk 0:02:45.6]}
15... Qe7 {[%clk 0:01:47.5]} 16. Rfe1 {[%clk 0:02:40.7]} 16... h6 {[%clk
0:01:46.7]} 17. g4 {[%clk 0:02:30.1]} 17... g5 {[%clk 0:01:39.3]} 18. Bg3 {[%clk
0:02:28.8]} 18... Rfc8 {[%clk 0:01:27.9]} 19. Rac1 {[%clk 0:02:26.8]} 19... Qd8
{[%clk 0:01:26.9]} 20. Qd2 {[%clk 0:02:20.6]} 20... Qc7 {[%clk 0:01:26.2]} 21.
Re4 {[%clk 0:02:14.7]} 21... Ndxe5 {[%clk 0:01:02.1]} 22. Nxe5 {[%clk
0:01:54.8]} 22... Bxe5 {[%clk 0:00:57.5]} 23. Bxe5 {[%clk 0:01:47.4]} 23... Nxe5
{[%clk 0:00:57]} 24. Rxe5 {[%clk 0:01:48]} 24... Qxe5 {[%clk 0:00:56.6]} 25.
Bxb7 {[%clk 0:01:48.2]} 25... a4 {[%clk 0:00:44.3]} 26. Re1 {[%clk 0:01:43.8]}
26... Qf6 {[%clk 0:00:42.6]} 27. Re4 {[%clk 0:01:34.3]} 27... Qf3 {[%clk
0:00:33]} 28. Qe2 {[%clk 0:01:25.5]} 28... Qxe2 {[%clk 0:00:29.6]} 29. Rxe2
{[%clk 0:01:26.4]} 29... Kf8 {[%clk 0:00:25]} 30. Kf1 {[%clk 0:01:26.2]} 30...
Ke7 {[%clk 0:00:25.1]} 31. Ke1 {[%clk 0:01:25.3]} 31... Kd6 {[%clk 0:00:24]} 32.
Kd1 {[%clk 0:01:25.4]} 32... Rab8 {[%clk 0:00:23]} 33. Bxc8 {[%clk 0:01:25.5]}
33... Rxc8 {[%clk 0:00:23.9]} 34. Kc2 {[%clk 0:01:25.1]} 34... f5 {[%clk
0:00:23.9]} 35. gxf5 {[%clk 0:01:19]} 35... exf5 {[%clk 0:00:24.8]} 36. b3
{[%clk 0:01:18]} 36... axb3+ {[%clk 0:00:22.7]} 37. Kxb3 {[%clk 0:01:16.7]}
37... Rb8+ {[%clk 0:00:22.5]} 38. Kc2 {[%clk 0:01:16.8]} 38... g4 {[%clk
0:00:20.8]} 39. Re1 {[%clk 0:01:14.9]} 39... Ra8 {[%clk 0:00:20.1]} 40. Kb2
{[%clk 0:01:14.9]} 40... Rb8+ {[%clk 0:00:20.2]} 41. Kc2 {[%clk 0:01:15.2]}
41... Rg8 {[%clk 0:00:06.8]} 42. Kd2 {[%clk 0:00:46.6]} 42... Ra8 {[%clk
0:00:06.4]} 43. Ra1 {[%clk 0:00:46.5]} 43... Ra3 {[%clk 0:00:07]} 44. Kc2 {[%clk
0:00:45.5]} 44... Ke5 {[%clk 0:00:06.9]} 45. Kd2 {[%clk 0:00:21.2]} 45... Kf4
{[%clk 0:00:06.5]} 46. Ke2 {[%clk 0:00:19.7]} 46... Kg5 {[%clk 0:00:04.6]} 47.
Kd2 {[%clk 0:00:19.7]} 47... Kxh5 {[%clk 0:00:04.9]} 48. Kc2 {[%clk 0:00:19.5]}
48... Kg5 {[%clk 0:00:05]} 49. Kb2 {[%clk 0:00:20.3]} 49... Ra5 {[%clk
0:00:04.4]} 50. Re1 {[%clk 0:00:19.3]} 50... h5 {[%clk 0:00:03.6]} 51. Re8
{[%clk 0:00:19.6]} 51... h4 {[%clk 0:00:04.1]} 52. Rh8 {[%clk 0:00:19.2]} 52...
h3 {[%clk 0:00:04.4]} 53. Kb3 {[%clk 0:00:16.9]} 53... Kf4 {[%clk 0:00:04.5]}
54. Rh5 {[%clk 0:00:16.1]} 54... Ra7 {[%clk 0:00:03.8]} 55. a3 {[%clk
0:00:15.6]} 55... Rb7+ {[%clk 0:00:03.9]} 56. Kc2 {[%clk 0:00:14.5]} 56... Rf7
{[%clk 0:00:03.5]} 57. Kd2 {[%clk 0:00:07.8]} 57... Kf3 {[%clk 0:00:04]} 58. Ke1
{[%clk 0:00:08.5]} 58... f4 {[%clk 0:00:02.7]} 59. Rh7 {[%clk 0:00:04.1]} 59...
Rxh7 {[%clk 0:00:02.8]} 0-1

[Event "Late-Titled-Tuesday-Blitz-June-18-2024"]
[Site "Chess.com"]
[Date "2024.06.18"]
[Round "8"]
[White "i_like_explosions"]
[Black "xasid81"]
[Result "0-1"]
[WhiteElo "2449"]
[BlackElo "2579"]
[TimeControl "180+1"]
[EndTime "15:30:07 PDT"]
[Termination "xasid81 won by checkmate"]

1. d4 {[%clk 0:03:00.9]} 1... d5 {[%clk 0:02:54.1]} 2. c4 {[%clk 0:02:58.4]}
2... e6 {[%clk 0:02:54.4]} 3. cxd5 {[%clk 0:02:58]} 3... exd5 {[%clk 0:02:51.5]}
4. Nc3 {[%clk 0:02:57.8]} 4... Nf6 {[%clk 0:02:51.8]} 5. Bg5 {[%clk 0:02:55.4]}
5... c5 {[%clk 0:02:51.9]} 6. Nf3 {[%clk 0:02:53.8]} 6... Be7 {[%clk 0:02:51.1]}
7. e3 {[%clk 0:02:52.7]} 7... O-O {[%clk 0:02:50.9]} 8. dxc5 {[%clk 0:02:47.2]}
8... Bxc5 {[%clk 0:02:50.3]} 9. Be2 {[%clk 0:02:47.3]} 9... Nc6 {[%clk
0:02:49.7]} 10. Nd4 {[%clk 0:02:30.3]} 10... Nxd4 {[%clk 0:02:46.8]} 11. exd4
{[%clk 0:02:31.2]} 11... Be7 {[%clk 0:02:47.4]} 12. O-O {[%clk 0:02:29.2]} 12...
h6 {[%clk 0:02:48]} 13. Bf4 {[%clk 0:02:21.4]} 13... Be6 {[%clk 0:02:47.1]} 14.
Qb3 {[%clk 0:02:18.5]} 14... Bd6 {[%clk 0:02:44.3]} 15. Be5 {[%clk 0:01:36.1]}
15... Bxe5 {[%clk 0:02:39.7]} 16. dxe5 {[%clk 0:01:35.2]} 16... d4 {[%clk
0:02:40.4]} 17. Qxb7 {[%clk 0:01:32.3]} 17... Nd7 {[%clk 0:02:32.5]} 18. Nb5
{[%clk 0:01:13]} 18... Nxe5 {[%clk 0:02:32.2]} 19. Qe4 {[%clk 0:01:13.5]} 19...
d3 {[%clk 0:02:22.7]} 20. Qxe5 {[%clk 0:00:51.7]} 20... dxe2 {[%clk 0:02:20.6]}
21. Qxe2 {[%clk 0:00:52.6]} 21... Qb6 {[%clk 0:02:17.5]} 22. Nc3 {[%clk
0:00:51.9]} 22... Rac8 {[%clk 0:02:15.4]} 23. Rfe1 {[%clk 0:00:49.8]} 23... Rfd8
{[%clk 0:02:14.5]} 24. Rad1 {[%clk 0:00:48.2]} 24... Re8 {[%clk 0:02:12.7]} 25.
Qd2 {[%clk 0:00:46.3]} 25... Qa5 {[%clk 0:02:09.2]} 26. a3 {[%clk 0:00:43.8]}
26... Red8 {[%clk 0:02:07.9]} 27. Qc2 {[%clk 0:00:41.8]} 27... Rf8 {[%clk
0:02:05.4]} 28. h3 {[%clk 0:00:41.4]} 28... Rb8 {[%clk 0:02:05.5]} 29. Rd4
{[%clk 0:00:39.3]} 29... Qc5 {[%clk 0:01:58.9]} 30. Rd2 {[%clk 0:00:23.3]} 30...
Rfc8 {[%clk 0:01:58.6]} 31. Qe4 {[%clk 0:00:21.5]} 31... Re8 {[%clk 0:01:54.8]}
32. Qe3 {[%clk 0:00:17.4]} 32... Qa5 {[%clk 0:01:49.5]} 33. Qg3 {[%clk
0:00:15.2]} 33... Rb3 {[%clk 0:01:39.3]} 34. Qe5 {[%clk 0:00:08.2]} 34... Qa6
{[%clk 0:01:16.5]} 35. Qd6 {[%clk 0:00:07.7]} 35... Rb6 {[%clk 0:01:13.2]} 36.
Qc5 {[%clk 0:00:07.1]} 36... Rc8 {[%clk 0:01:09.5]} 37. Qd4 {[%clk 0:00:07.2]}
37... Rcb8 {[%clk 0:01:07.6]} 38. Ree2 {[%clk 0:00:06.2]} 38... Bc4 {[%clk
0:01:05.5]} 39. Re7 {[%clk 0:00:06.8]} 39... Be6 {[%clk 0:00:50.9]} 40. Rc7
{[%clk 0:00:06.5]} 40... R6b7 {[%clk 0:00:46.9]} 41. Rxb7 {[%clk 0:00:06.6]}
41... Qxb7 {[%clk 0:00:47.8]} 42. b4 {[%clk 0:00:05.9]} 42... Rc8 {[%clk
0:00:46.7]} 43. b5 {[%clk 0:00:06.1]} 43... Rc4 {[%clk 0:00:45]} 44. Qe5 {[%clk
0:00:06.7]} 44... Qc8 {[%clk 0:00:42.2]} 45. Ne4 {[%clk 0:00:05.5]} 45... Rc1+
{[%clk 0:00:33.1]} 46. Kh2 {[%clk 0:00:05.9]} 46... Qc7 {[%clk 0:00:29.1]} 47.
Qxc7 {[%clk 0:00:05.9]} 47... Rxc7 {[%clk 0:00:29.9]} 48. Nd6 {[%clk 0:00:06.7]}
48... Rc3 {[%clk 0:00:26.6]} 49. a4 {[%clk 0:00:07]} 49... Ra3 {[%clk
0:00:24.7]} 50. Rd4 {[%clk 0:00:07.7]} 50... Ra2 {[%clk 0:00:22]} 51. Ne4 {[%clk
0:00:08.1]} 51... Bb3 {[%clk 0:00:20.4]} 52. Nc5 {[%clk 0:00:08.1]} 52... Bc2
{[%clk 0:00:18.4]} 53. Kg3 {[%clk 0:00:08.5]} 53... Bf5 {[%clk 0:00:17.1]} 54.
Rb4 {[%clk 0:00:08.6]} 54... Rc2 {[%clk 0:00:16.1]} 55. Ne4 {[%clk 0:00:08.2]}
55... Bxe4 {[%clk 0:00:11.1]} 56. Rxe4 {[%clk 0:00:09.1]} 56... Ra2 {[%clk
0:00:11.6]} 57. Rb4 {[%clk 0:00:09.6]} 57... f5 {[%clk 0:00:11.4]} 58. f3 {[%clk
0:00:10.2]} 58... Kf7 {[%clk 0:00:11.9]} 59. Kh2 {[%clk 0:00:10.6]} 59... g5
{[%clk 0:00:12.2]} 60. f4 {[%clk 0:00:09.4]} 60... Kg6 {[%clk 0:00:11]} 61. fxg5
{[%clk 0:00:09.7]} 61... hxg5 {[%clk 0:00:11.9]} 62. h4 {[%clk 0:00:09.8]} 62...
f4 {[%clk 0:00:10.6]} 63. hxg5 {[%clk 0:00:09.3]} 63... Kxg5 {[%clk 0:00:11.5]}
64. Kh3 {[%clk 0:00:07.8]} 64... Ra1 {[%clk 0:00:11.1]} 65. Rd4 {[%clk
0:00:07.2]} 65... Rh1# {[%clk 0:00:10.9]} 0-1

[Event "Late-Titled-Tuesday-Blitz-June-18-2024"]
[Site "Chess.com"]
[Date "2024.06.18"]
[Round "8"]
[White "VirtualCoach"]
[Black "Zq1"]
[Result "0-1"]
[WhiteElo "2352"]
[BlackElo "2497"]
[TimeControl "180+1"]
[EndTime "15:30:08 PDT"]
[Termination "Zq1 won by checkmate"]

1. e4 {[%clk 0:03:00.7]} 1... c5 {[%clk 0:02:59.3]} 2. Nf3 {[%clk 0:02:59.9]}
2... d6 {[%clk 0:02:58.1]} 3. d4 {[%clk 0:03:00]} 3... cxd4 {[%clk 0:02:58.3]}
4. Nxd4 {[%clk 0:03:00.7]} 4... Nf6 {[%clk 0:02:58.4]} 5. Nc3 {[%clk 0:03:01]}
5... Nc6 {[%clk 0:02:58.6]} 6. Bg5 {[%clk 0:03:00.7]} 6... g6 {[%clk 0:02:57.9]}
7. Bxf6 {[%clk 0:02:57.9]} 7... exf6 {[%clk 0:02:58]} 8. Qd2 {[%clk 0:02:57.8]}
8... Bg7 {[%clk 0:02:57.7]} 9. O-O-O {[%clk 0:02:58.1]} 9... O-O {[%clk
0:02:57.4]} 10. Nxc6 {[%clk 0:02:57.1]} 10... bxc6 {[%clk 0:02:56.9]} 11. Qxd6
{[%clk 0:02:57.7]} 11... Qb6 {[%clk 0:02:55.6]} 12. Qd4 {[%clk 0:02:54.7]} 12...
c5 {[%clk 0:02:39.1]} 13. Qd6 {[%clk 0:02:54.2]} 13... f5 {[%clk 0:02:32.7]} 14.
e5 {[%clk 0:02:47.2]} 14... Rb8 {[%clk 0:02:01.7]} 15. Qxb6 {[%clk 0:02:46.8]}
15... axb6 {[%clk 0:01:52.1]} 16. f4 {[%clk 0:02:47.2]} 16... Be6 {[%clk
0:01:43.1]} 17. Bb5 {[%clk 0:02:45]} 17... f6 {[%clk 0:01:37.1]} 18. exf6 {[%clk
0:02:43.2]} 18... Bxf6 {[%clk 0:01:36.7]} 19. Rhe1 {[%clk 0:02:43.7]} 19... Bf7
{[%clk 0:01:26.1]} 20. Rd7 {[%clk 0:02:34.3]} 20... Kh8 {[%clk 0:01:13.4]} 21.
Ra7 {[%clk 0:02:28.9]} 21... Ra8 {[%clk 0:01:04.4]} 22. Rxa8 {[%clk 0:02:28.1]}
22... Rxa8 {[%clk 0:01:02.8]} 23. Kb1 {[%clk 0:02:12.5]} 23... Bxc3 {[%clk
0:01:00.8]} 24. bxc3 {[%clk 0:02:12.3]} 24... Bxa2+ {[%clk 0:01:00.4]} 25. Kb2
{[%clk 0:02:11.1]} 25... Bg8 {[%clk 0:00:57.8]} 26. Bc6 {[%clk 0:02:08.3]} 26...
Rc8 {[%clk 0:00:55.3]} 27. Bb7 {[%clk 0:02:06.4]} 27... Rc7 {[%clk 0:00:54.9]}
28. Bf3 {[%clk 0:02:06]} 28... Kg7 {[%clk 0:00:54.8]} 29. Rd1 {[%clk 0:02:02.4]}
29... b5 {[%clk 0:00:41.3]} 30. Rd6 {[%clk 0:02:02.6]} 30... Bc4 {[%clk
0:00:40.4]} 31. Rb6 {[%clk 0:02:00.9]} 31... h6 {[%clk 0:00:36.9]} 32. Bc6
{[%clk 0:02:00.6]} 32... Re7 {[%clk 0:00:32]} 33. Bf3 {[%clk 0:01:42.2]} 33...
g5 {[%clk 0:00:30.9]} 34. fxg5 {[%clk 0:01:35]} 34... hxg5 {[%clk 0:00:30.4]}
35. Bh5 {[%clk 0:01:35.5]} 35... g4 {[%clk 0:00:28.1]} 36. Rc6 {[%clk 0:01:31]}
36... Re5 {[%clk 0:00:27]} 37. h3 {[%clk 0:01:30.1]} 37... gxh3 {[%clk
0:00:25.5]} 38. gxh3 {[%clk 0:01:28.1]} 38... f4 {[%clk 0:00:25]} 39. Bg4 {[%clk
0:01:27.7]} 39... Kf7 {[%clk 0:00:18.7]} 40. h4 {[%clk 0:01:25.6]} 40... Kg7
{[%clk 0:00:18.3]} 41. h5 {[%clk 0:01:25.5]} 41... Rg5 {[%clk 0:00:18.4]} 42.
Bf3 {[%clk 0:01:22.7]} 42... Rg3 {[%clk 0:00:17.7]} 43. Be4 {[%clk 0:01:19.7]}
43... Rh3 {[%clk 0:00:16]} 44. Rxc5 {[%clk 0:01:18.6]} 44... f3 {[%clk
0:00:12.6]} 45. Rf5 {[%clk 0:01:18.6]} 45... Be2 {[%clk 0:00:12.5]} 46. Kb3
{[%clk 0:01:08.5]} 46... Kh6 {[%clk 0:00:12.5]} 47. Rf4 {[%clk 0:00:59.5]} 47...
Kg5 {[%clk 0:00:11.7]} 48. Rf5+ {[%clk 0:00:58.8]} 48... Kg4 {[%clk 0:00:11.2]}
49. Kb4 {[%clk 0:00:56.7]} 49... Rh2 {[%clk 0:00:07.3]} 50. Bxf3+ {[%clk
0:00:45.1]} 50... Bxf3 {[%clk 0:00:06.4]} 51. Rxb5 {[%clk 0:00:44.9]} 51... Bd1
{[%clk 0:00:04.9]} 52. Rd5 {[%clk 0:00:42.3]} 52... Bxc2 {[%clk 0:00:04.5]} 53.
c4 {[%clk 0:00:42.9]} 53... Kf4 {[%clk 0:00:03.5]} 54. c5 {[%clk 0:00:42.8]}
54... Be4 {[%clk 0:00:03.5]} 55. Rd4 {[%clk 0:00:39.5]} 55... Ke5 {[%clk
0:00:02.6]} 56. Kc4 {[%clk 0:00:37.9]} 56... Rc2+ {[%clk 0:00:01]} 57. Kb3
{[%clk 0:00:32.7]} 57... Kxd4 {[%clk 0:00:01.6]} 58. h6 {[%clk 0:00:31.5]} 58...
Rxc5 {[%clk 0:00:02.1]} 59. h7 {[%clk 0:00:32]} 59... Rh5 {[%clk 0:00:02.7]} 60.
h8=Q+ {[%clk 0:00:30.4]} 60... Rxh8 {[%clk 0:00:02.8]} 61. Kb4 {[%clk
0:00:30.9]} 61... Rc8 {[%clk 0:00:03.4]} 62. Kb5 {[%clk 0:00:31.8]} 62... Rb8+
{[%clk 0:00:03.7]} 63. Ka6 {[%clk 0:00:30.9]} 63... Rb1 {[%clk 0:00:04.2]} 64.
Ka7 {[%clk 0:00:31.8]} 64... Kc5 {[%clk 0:00:04.3]} 65. Ka6 {[%clk 0:00:31.8]}
65... Ra1# {[%clk 0:00:04.4]} 0-1

[Event "Late-Titled-Tuesday-Blitz-June-18-2024"]
[Site "Chess.com"]
[Date "2024.06.18"]
[Round "8"]
[White "Jahonas"]
[Black "Bykov_Egor"]
[Result "1-0"]
[WhiteElo "2410"]
[BlackElo "2620"]
[TimeControl "180+1"]
[EndTime "15:30:29 PDT"]
[Termination "Jahonas won by resignation"]

1. d4 {[%clk 0:03:00.9]} 1... Nf6 {[%clk 0:02:56.8]} 2. Nf3 {[%clk 0:03:00.2]}
2... e6 {[%clk 0:02:56.7]} 3. c3 {[%clk 0:03:00.2]} 3... d5 {[%clk 0:02:53.2]}
4. Bf4 {[%clk 0:02:59.6]} 4... Bd6 {[%clk 0:02:49.4]} 5. Bg3 {[%clk 0:02:57.5]}
5... O-O {[%clk 0:02:45.5]} 6. Nbd2 {[%clk 0:02:57.1]} 6... c5 {[%clk 0:02:42]}
7. e3 {[%clk 0:02:57.3]} 7... Qc7 {[%clk 0:02:40]} 8. Bd3 {[%clk 0:02:55.5]}
8... Nbd7 {[%clk 0:02:39.5]} 9. O-O {[%clk 0:02:54.6]} 9... Bxg3 {[%clk
0:02:36.8]} 10. hxg3 {[%clk 0:02:53.6]} 10... e5 {[%clk 0:02:37.4]} 11. dxe5
{[%clk 0:02:52.3]} 11... Nxe5 {[%clk 0:02:38.3]} 12. Be2 {[%clk 0:02:40.6]}
12... Neg4 {[%clk 0:02:06.2]} 13. c4 {[%clk 0:02:17.5]} 13... Be6 {[%clk
0:01:59.4]} 14. Ng5 {[%clk 0:02:11.5]} 14... h5 {[%clk 0:01:42]} 15. Nxe6 {[%clk
0:02:06.9]} 15... fxe6 {[%clk 0:01:42.9]} 16. cxd5 {[%clk 0:02:04.5]} 16... exd5
{[%clk 0:01:42.7]} 17. Bf3 {[%clk 0:01:53.6]} 17... Rad8 {[%clk 0:01:38.6]} 18.
Re1 {[%clk 0:01:49.6]} 18... Qe5 {[%clk 0:01:38.5]} 19. Qc2 {[%clk 0:01:38.8]}
19... b6 {[%clk 0:01:16.8]} 20. Rad1 {[%clk 0:01:36.3]} 20... Qg5 {[%clk
0:01:15.1]} 21. Nf1 {[%clk 0:01:33.1]} 21... Ne5 {[%clk 0:01:13.1]} 22. Qe2
{[%clk 0:01:11.7]} 22... Nxf3+ {[%clk 0:01:04]} 23. gxf3 {[%clk 0:01:09.5]}
23... h4 {[%clk 0:01:02.3]} 24. f4 {[%clk 0:01:08.3]} 24... Qg6 {[%clk
0:01:01.2]} 25. Qf3 {[%clk 0:00:57]} 25... hxg3 {[%clk 0:00:41.2]} 26. Nxg3
{[%clk 0:00:51.8]} 26... Ne4 {[%clk 0:00:40.3]} 27. Kg2 {[%clk 0:00:49.6]} 27...
Nxg3 {[%clk 0:00:32.1]} 28. Qxg3 {[%clk 0:00:48.6]} 28... Qe4+ {[%clk
0:00:27.1]} 29. Qf3 {[%clk 0:00:47.5]} 29... Kf7 {[%clk 0:00:26.6]} 30. Qxe4
{[%clk 0:00:47.2]} 30... dxe4 {[%clk 0:00:26.8]} 31. f3 {[%clk 0:00:43.5]} 31...
exf3+ {[%clk 0:00:20.6]} 32. Kxf3 {[%clk 0:00:44.4]} 32... Rh8 {[%clk
0:00:19.2]} 33. e4 {[%clk 0:00:42.3]} 33... Rh3+ {[%clk 0:00:17.4]} 34. Kg4
{[%clk 0:00:42.3]} 34... Rhd3 {[%clk 0:00:17.1]} 35. Rxd3 {[%clk 0:00:40.8]}
35... Rxd3 {[%clk 0:00:18]} 36. Re2 {[%clk 0:00:40.3]} 36... c4 {[%clk
0:00:18.2]} 37. f5 {[%clk 0:00:37.2]} 37... b5 {[%clk 0:00:16.7]} 38. Rc2 {[%clk
0:00:34.6]} 38... Kf6 {[%clk 0:00:15.4]} 39. Kf4 {[%clk 0:00:34.8]} 39... Rd4
{[%clk 0:00:13.5]} 40. Rg2 {[%clk 0:00:34.8]} 40... b4 {[%clk 0:00:11.2]} 41.
Rg6+ {[%clk 0:00:34.8]} 41... Kf7 {[%clk 0:00:11.5]} 42. Rc6 {[%clk 0:00:34]}
42... Rd2 {[%clk 0:00:11]} 43. Rxc4 {[%clk 0:00:27.9]} 43... Rxb2 {[%clk
0:00:11.5]} 44. Rc7+ {[%clk 0:00:27.9]} 44... Kf8 {[%clk 0:00:12.2]} 45. Rxa7
{[%clk 0:00:27.9]} 45... b3 {[%clk 0:00:12.3]} 46. axb3 {[%clk 0:00:27.2]} 46...
Rxb3 {[%clk 0:00:13.2]} 47. e5 {[%clk 0:00:26.2]} 47... Rb5 {[%clk 0:00:11.9]}
48. e6 {[%clk 0:00:23]} 48... Rc5 {[%clk 0:00:11.2]} 49. Kg5 {[%clk 0:00:21.9]}
49... Rc2 {[%clk 0:00:10.6]} 50. Rf7+ {[%clk 0:00:21.6]} 50... Kg8 {[%clk
0:00:10.3]} 51. Ra7 {[%clk 0:00:17.5]} 51... Kf8 {[%clk 0:00:10.8]} 52. Rf7+
{[%clk 0:00:09.6]} 52... Kg8 {[%clk 0:00:10.4]} 53. Kf4 {[%clk 0:00:10.3]} 53...
Rb2 {[%clk 0:00:10.1]} 54. Ke5 {[%clk 0:00:10.1]} 54... Rb5+ {[%clk 0:00:10.4]}
55. Kd6 {[%clk 0:00:09.5]} 55... Rb6+ {[%clk 0:00:05.9]} 56. Ke5 {[%clk
0:00:09.5]} 56... Rb5+ {[%clk 0:00:06.2]} 57. Kf4 {[%clk 0:00:10]} 57... Rb4+
{[%clk 0:00:06.8]} 58. Kg5 {[%clk 0:00:10.2]} 58... Rb1 {[%clk 0:00:07.4]} 59.
Ra7 {[%clk 0:00:07.9]} 59... Kf8 {[%clk 0:00:08]} 60. Ra8+ {[%clk 0:00:08.2]}
60... Ke7 {[%clk 0:00:08.3]} 61. Rg8 {[%clk 0:00:08.1]} 61... Rg1+ {[%clk
0:00:08.9]} 62. Kf4 {[%clk 0:00:08.3]} 62... Kf6 {[%clk 0:00:05]} 63. Rf8+
{[%clk 0:00:08]} 63... Ke7 {[%clk 0:00:05.6]} 64. Rf7+ {[%clk 0:00:08.3]} 64...
Ke8 {[%clk 0:00:06.3]} 65. Ke5 {[%clk 0:00:05.6]} 65... Rf1 {[%clk 0:00:06.4]}
66. Rxg7 {[%clk 0:00:04.7]} 66... Re1+ {[%clk 0:00:07.1]} 67. Kf6 {[%clk
0:00:05.1]} 67... Kd8 {[%clk 0:00:04.9]} 68. Rg8+ {[%clk 0:00:04.4]} 68... Kc7
{[%clk 0:00:05.5]} 69. e7 {[%clk 0:00:04.8]} 69... Kd7 {[%clk 0:00:06]} 70. Rd8+
{[%clk 0:00:04.7]} 1-0

[Event "Late-Titled-Tuesday-Blitz-June-18-2024"]
[Site "Chess.com"]
[Date "2024.06.18"]
[Round "8"]
[White "Duhless"]
[Black "vladislavkovalev"]
[Result "1-0"]
[WhiteElo "3107"]
[BlackElo "2880"]
[TimeControl "180+1"]
[EndTime "15:30:37 PDT"]
[Termination "Duhless won by resignation"]

1. d4 {[%clk 0:02:59.6]} 1... Nf6 {[%clk 0:02:51.3]} 2. Nf3 {[%clk 0:02:59.9]}
2... e6 {[%clk 0:02:39.4]} 3. c4 {[%clk 0:02:59.2]} 3... b6 {[%clk 0:02:37.8]}
4. g3 {[%clk 0:02:59]} 4... Ba6 {[%clk 0:02:37.3]} 5. Qc2 {[%clk 0:02:58.6]}
5... Bb4+ {[%clk 0:02:36.1]} 6. Bd2 {[%clk 0:02:56]} 6... Bxd2+ {[%clk
0:02:33.5]} 7. Nbxd2 {[%clk 0:02:55.7]} 7... O-O {[%clk 0:02:31.5]} 8. Bg2
{[%clk 0:02:54.7]} 8... d5 {[%clk 0:02:31.9]} 9. O-O {[%clk 0:02:53.9]} 9... c6
{[%clk 0:02:28.8]} 10. Rac1 {[%clk 0:02:48.5]} 10... Nbd7 {[%clk 0:02:28.4]} 11.
Rfd1 {[%clk 0:02:48.1]} 11... Bb7 {[%clk 0:02:22.6]} 12. e4 {[%clk 0:02:45.7]}
12... dxe4 {[%clk 0:02:22.6]} 13. Nxe4 {[%clk 0:02:45.8]} 13... Nxe4 {[%clk
0:02:23.3]} 14. Qxe4 {[%clk 0:02:46]} 14... Nf6 {[%clk 0:02:16.6]} 15. Qe2
{[%clk 0:02:44.2]} 15... Qc7 {[%clk 0:02:16.4]} 16. c5 {[%clk 0:02:44]} 16...
Rfd8 {[%clk 0:02:15.1]} 17. Ne5 {[%clk 0:02:43.4]} 17... b5 {[%clk 0:02:06.3]}
18. a3 {[%clk 0:02:09.9]} 18... a5 {[%clk 0:02:04.9]} 19. Qe1 {[%clk 0:02:07.4]}
19... a4 {[%clk 0:02:02.8]} 20. h4 {[%clk 0:02:04.9]} 20... Nd5 {[%clk
0:01:58.8]} 21. h5 {[%clk 0:02:01.8]} 21... Re8 {[%clk 0:01:48.2]} 22. f4 {[%clk
0:01:49.4]} 22... Qe7 {[%clk 0:01:45.9]} 23. Bf3 {[%clk 0:01:45.9]} 23... f6
{[%clk 0:01:45.8]} 24. Nd3 {[%clk 0:01:45.3]} 24... Rad8 {[%clk 0:01:46.4]} 25.
Qf2 {[%clk 0:01:42.9]} 25... Qf7 {[%clk 0:01:44.4]} 26. Re1 {[%clk 0:01:41.6]}
26... Ne7 {[%clk 0:01:44.9]} 27. g4 {[%clk 0:01:34.8]} 27... Rd7 {[%clk
0:01:39.9]} 28. Re4 {[%clk 0:01:24.2]} 28... Nd5 {[%clk 0:01:09.4]} 29. Rce1
{[%clk 0:01:20]} 29... Rde7 {[%clk 0:01:09.8]} 30. Qg3 {[%clk 0:01:12]} 30...
Bc8 {[%clk 0:01:08.9]} 31. g5 {[%clk 0:01:10.3]} 31... Kh8 {[%clk 0:01:03.9]}
32. g6 {[%clk 0:01:06.2]} 32... Qf8 {[%clk 0:01:03.3]} 33. R4e2 {[%clk
0:01:05.8]} 33... h6 {[%clk 0:00:41]} 34. Nb4 {[%clk 0:00:58.1]} 34... Bd7
{[%clk 0:00:37.4]} 35. Kf2 {[%clk 0:00:54.8]} 35... Kg8 {[%clk 0:00:37.2]} 36.
f5 {[%clk 0:00:37.5]} 36... Nxb4 {[%clk 0:00:29.1]} 37. axb4 {[%clk 0:00:38.4]}
37... exf5 {[%clk 0:00:18.2]} 38. Rxe7 {[%clk 0:00:38]} 38... Rxe7 {[%clk
0:00:19.1]} 39. Rxe7 {[%clk 0:00:32.8]} 39... Qxe7 {[%clk 0:00:20]} 40. Qb8+
{[%clk 0:00:23.1]} 40... Qe8 {[%clk 0:00:11]} 41. Qxe8+ {[%clk 0:00:23]} 41...
Bxe8 {[%clk 0:00:11.9]} 42. d5 {[%clk 0:00:23.8]} 42... cxd5 {[%clk 0:00:10.3]}
43. Bxd5+ {[%clk 0:00:24]} 43... Kf8 {[%clk 0:00:11.2]} 44. c6 {[%clk
0:00:24.4]} 44... Ke7 {[%clk 0:00:10]} 45. c7 {[%clk 0:00:24.6]} 45... Bd7
{[%clk 0:00:09.7]} 46. Bb7 {[%clk 0:00:24.9]} 46... Kd6 {[%clk 0:00:06.7]} 47.
c8=Q {[%clk 0:00:24.6]} 47... Bxc8 {[%clk 0:00:07.4]} 48. Bxc8 {[%clk
0:00:24.7]} 48... Kd5 {[%clk 0:00:08.3]} 49. Ke3 {[%clk 0:00:17.3]} 49... Kc4
{[%clk 0:00:08.9]} 50. Be6+ {[%clk 0:00:16.4]} 50... Kxb4 {[%clk 0:00:09.6]} 51.
Kd4 {[%clk 0:00:13.9]} 51... f4 {[%clk 0:00:09.8]} 52. Ke4 {[%clk 0:00:13.9]}
52... Kc5 {[%clk 0:00:09.4]} 53. Kxf4 {[%clk 0:00:13.2]} 53... b4 {[%clk
0:00:02.6]} 54. Ke4 {[%clk 0:00:13.3]} 54... Kd6 {[%clk 0:00:01.6]} 55. Bf7
{[%clk 0:00:13.2]} 55... Kc5 {[%clk 0:00:01.4]} 56. Ba2 {[%clk 0:00:12.7]} 56...
b3 {[%clk 0:00:01.4]} 57. Bb1 {[%clk 0:00:11.5]} 57... Kc4 {[%clk 0:00:01.6]}
58. Bd3+ {[%clk 0:00:11.3]} 58... Kc5 {[%clk 0:00:02.1]} 59. Ke3 {[%clk
0:00:11.6]} 59... Kb4 {[%clk 0:00:01.7]} 60. Kd4 {[%clk 0:00:11.8]} 60... a3
{[%clk 0:00:02.2]} 61. bxa3+ {[%clk 0:00:12]} 61... Kxa3 {[%clk 0:00:03.1]} 62.
Kc3 {[%clk 0:00:12.3]} 62... b2 {[%clk 0:00:03.5]} 63. Bb1 {[%clk 0:00:12.3]}
63... Ka4 {[%clk 0:00:04.1]} 64. Kc4 {[%clk 0:00:12.1]} 64... Ka5 {[%clk
0:00:04.2]} 65. Kd5 {[%clk 0:00:09.3]} 65... Kb4 {[%clk 0:00:04.4]} 66. Ke6
{[%clk 0:00:09.8]} 66... Kc3 {[%clk 0:00:03.2]} 67. Kf7 {[%clk 0:00:10.1]} 67...
Kd2 {[%clk 0:00:04]} 68. Kxg7 {[%clk 0:00:10.4]} 68... Kc1 {[%clk 0:00:04.9]}
69. Bf5 {[%clk 0:00:10.5]} 1-0